fUST/lending_fUST_20250106
["ID","MTS","AMOUNT","RATE_DAILY","PERIOD"]
[347796062,1736112632861,-500.0,0.00020848,3]
[347796065,1736112632870,-500.0,0.00020873,2]
[347796068,1736112632881,-500.0,0.0002089,3]
[347796071,1736112632891,-500.0,0.0002089,3]
[347796073,1736112632901,-500.0,0.0002089,3]
[347796075,1736112632911,-500.0,0.0002089,3]
[347796077,1736112632920,-500.0,0.0002089,3]
[347796079,1736112632930,-500.0,0.0002089,3]
[347796081,1736112632939,-500.0,0.0002089,3]
[347796083,1736112632949,-190.24022691,0.0002089,3]
[347796085,1736112632958,-575.15,0.0002089,3]
[347796087,1736112632967,-1235.59,0.0002089,3]
[347796089,1736112632977,-500.0,0.0002089,3]
[347796091,1736112632986,-500.0,0.00020891,3]
[347796093,1736112632995,-500.0,0.00020891,3]
[347796095,1736112633004,-500.0,0.00020891,3]
[347796097,1736112633014,-500.0,0.00020891,3]
[347796099,1736112633023,-500.0,0.00020891,3]
[347796101,1736112633032,-500.0,0.00020891,3]
[347796103,1736112633042,-500.0,0.00020891,3]
[347796105,1736112633051,-500.0,0.00020891,3]
[347796107,1736112633061,-500.0,0.00020891,3]
[347796109,1736112633070,-500.0,0.00020891,3]
[347796111,1736112633084,-500.0,0.00020891,3]
[347796113,1736112633093,-500.0,0.00020891,3]
[347796115,1736112633103,-500.0,0.00020891,3]
[347796117,1736112633112,-500.0,0.00020891,3]
[347796119,1736112633122,-500.0,0.00020891,3]
[347796121,1736112633131,-500.0,0.00020891,3]
[347796124,1736112633141,-500.0,0.00020891,3]
[347796125,1736112633151,-500.0,0.00020891,3]
[347796128,1736112633160,-604.64614272,0.00020891,3]
[347796130,1736112633170,-500.0,0.00020891,3]
[347796132,1736112633179,-544.8231275,0.00020891,3]
[347796133,1736112633188,-500.0,0.00020891,3]
[347796136,1736112633199,-500.0,0.00020891,3]
[347796138,1736112633208,-500.0,0.00020891,3]
[347796140,1736112633218,-500.0,0.00020891,3]
[347796142,1736112633227,-500.0,0.00020891,3]
[347796144,1736112633236,-500.0,0.00020891,3]
[347796146,1736112633246,-500.0,0.00020891,3]
[347796148,1736112633255,-500.0,0.00020891,3]
[347796150,1736112633264,-500.0,0.00020891,3]
[347796152,1736112633274,-500.0,0.00020891,3]
[347796154,1736112633283,-500.0,0.00020891,3]
[347796156,1736112633292,-500.0,0.00020891,3]
[347796158,1736112633301,-500.0,0.00020891,3]
[347796160,1736112633311,-500.0,0.00020891,3]
[347796162,1736112633320,-318.24212311,0.00020891,2]
[347796164,1736112633329,-288.43899919,0.00020891,2]
[347796166,1736112633339,-500.0,0.00020891,2]
[347796168,1736112633348,-500.0,0.00020891,2]
[347796170,1736112633358,-299.95725869,0.00020891,2]
[347796172,1736112633367,-261.37922836,0.00020891,2]
[347796174,1736112633376,-500.0,0.00020891,3]
[347796176,1736112633385,-500.0,0.00020891,3]
[347796178,1736112633394,-598.31,0.00020891,3]
[347796180,1736112633403,-500.0,0.00020891,3]
[347796182,1736112633412,-500.0,0.00020891,3]
[347796183,1736112633421,-500.0,0.00020891,3]
[347796186,1736112633430,-500.0,0.00020891,3]
[347796187,1736112633439,-500.0,0.00020891,3]
[347796190,1736112633449,-500.0,0.00020891,3]
[347796191,1736112633460,-500.0,0.00020891,3]
[347796192,1736112633469,-500.0,0.00020891,3]
[347796193,1736112633479,-484.49126719,0.00020891,3]
[347796194,1736112633488,-500.0,0.00020891,3]
[347796195,1736112633498,-500.0,0.00020891,3]
[347796196,1736112633508,-538.05,0.00020891,3]
[347796197,1736112633517,-500.0,0.00020891,3]
[347796198,1736112633527,-500.0,0.00020891,3]
[347796199,1736112633537,-500.0,0.00020891,3]
[347796200,1736112633547,-500.0,0.00020891,3]
[347796201,1736112633556,-500.0,0.00020891,3]
[347796202,1736112633566,-515.27,0.00020891,3]
[347796203,1736112633576,-500.0,0.00020891,3]
[347796204,1736112633586,-511.2,0.00020891,3]
[347796205,1736112633595,-511.2,0.00020891,3]
[347796206,1736112633604,-500.0,0.00020891,3]
[347796207,1736112633614,-500.0,0.00020891,3]
[347796208,1736112633624,-500.0,0.00020891,3]
[347796209,1736112633634,-500.0,0.00020891,3]
[347796210,1736112633644,-500.0,0.00020891,3]
[347796211,1736112633654,-500.0,0.00020891,3]
[347796212,1736112633663,-500.0,0.00020891,3]
[347796214,1736112633672,-500.0,0.00020891,3]
[347796216,1736112633681,-500.0,0.00020891,3]
[347796218,1736112633691,-500.0,0.00020891,3]
[347796220,1736112633699,-500.0,0.00020891,3]
[347796222,1736112633709,-500.0,0.00020891,3]
[347796224,1736112633718,-500.0,0.00020891,3]
[347796226,1736112633727,-500.0,0.00020891,3]
[347796228,1736112633736,-500.0,0.00020891,3]
[347796230,1736112633746,-500.0,0.00020891,3]
[347796232,1736112633755,-152.91716817,0.00020891,3]
[347796233,1736112633764,-500.0,0.00020891,3]
[347796236,1736112633774,-500.0,0.00020891,3]
[347796238,1736112633784,-500.0,0.00020891,3]
[347796239,1736112633793,-500.0,0.00020891,3]
[347796241,1736112633803,-517.00251571,0.00020892,3]
[347796244,1736112633812,-500.0,0.00020892,3]
[347796246,1736112633822,-500.0,0.00020892,3]
[347796248,1736112633832,-500.0,0.00020892,3]
[347796250,1736112633841,-272.58283183,0.00020892,3]
[347796252,1736112633851,-500.0,0.00020892,3]
[347796254,1736112633860,-500.0,0.00020892,3]
[347796256,1736112633869,-160.94,0.00020892,2]
[347796258,1736112633879,-500.0,0.00020892,3]
[347796260,1736112633888,-500.0,0.00020892,3]
[347796262,1736112633897,-452.12130004,0.00020892,3]
[347796264,1736112633907,-500.0,0.00020892,3]
[347796266,1736112633916,-500.0,0.00020892,3]
[347796268,1736112633926,-500.0,0.00020892,3]
[347796270,1736112633935,-500.0,0.00020892,3]
[347796272,1736112633945,-500.0,0.00020892,3]
[347796273,1736112633954,-500.0,0.00020892,3]
[347796276,1736112633968,-500.0,0.00020892,3]
[347796278,1736112633978,-500.0,0.00020892,3]
[347796280,1736112633988,-500.0,0.00020892,3]
[347796282,1736112633997,-500.0,0.00020892,3]
[347796283,1736112634007,-500.0,0.00020892,3]
[347796285,1736112634016,-500.0,0.00020892,3]
[347796287,1736112634026,-500.0,0.00020892,3]
[347796289,1736112634035,-500.0,0.00020892,3]
[347796291,1736112634045,-500.0,0.00020892,3]
[347796294,1736112634054,-500.0,0.00020892,3]
[347796296,1736112634064,-1228.36,0.00020892,3]
[347796298,1736112634075,-500.0,0.00020892,3]
[347796300,1736112634085,-500.0,0.00020892,3]
[347796301,1736112634095,-500.0,0.00020892,3]
[347796303,1736112634104,-500.0,0.00020892,3]
[347796306,1736112634113,-297.85381967,0.00020892,3]
[347796307,1736112634123,-500.0,0.00020892,3]
[347796309,1736112634132,-500.0,0.00020892,3]
[347796311,1736112634141,-500.0,0.00020892,3]
[347796313,1736112634150,-500.0,0.00020892,3]
[347796315,1736112634159,-500.0,0.00020892,3]
[347796317,1736112634170,-500.0,0.00020892,3]
[347796319,1736112634179,-500.0,0.00020892,3]
[347796321,1736112634188,-500.0,0.00020892,5]
[347796323,1736112634197,-500.0,0.00020892,3]
[347796325,1736112634207,-500.0,0.00020892,3]
[347796327,1736112634216,-500.0,0.00020892,3]
[347796329,1736112634225,-500.0,0.00020892,3]
[347796331,1736112634235,-500.0,0.00020892,3]
[347796333,1736112634244,-500.0,0.00020892,3]
[347796335,1736112634253,-500.0,0.00020892,3]
[347796337,1736112634263,-500.0,0.00020892,3]
[347796339,1736112634273,-500.0,0.00020892,3]
[347796341,1736112634282,-406.86028583,0.00020892,3]
[347796526,1736112638513,-573.38,0.0002089,3]
[347796527,1736112638523,-500.0,0.0002089,3]
[347796528,1736112638533,-500.0,0.00020891,3]
[347796529,1736112638543,-93.13971417,0.00020892,3]
[347796530,1736112638552,-500.0,0.00020892,3]
[347796531,1736112638562,-500.0,0.00020892,3]
[347796532,1736112638571,-500.0,0.00020892,3]
[347796533,1736112638581,-436.33057439,0.00020892,3]
[347796534,1736112638600,-63.66942561,0.00020892,3]
[347796535,1736112638610,-500.0,0.00020892,3]
[347796536,1736112638619,-298.43,0.00020892,3]
[347796537,1736112638629,-137.90057439,0.00020892,3]
[347796580,1736112640754,-362.09942561,0.00020892,3]
[347796582,1736112640763,-273.17640377,0.00020892,3]
[347796879,1736112643686,-500.0,0.00020891,3]
[347796881,1736112643697,-500.0,0.00020891,3]
[347796883,1736112643707,-226.82359623,0.00020892,3]
[347796885,1736112643716,-500.0,0.00020892,3]
[347796887,1736112643726,-500.0,0.00020892,3]
[347796889,1736112643735,-500.0,0.00020892,3]
[347796891,1736112643744,-500.0,0.00020892,3]
[347796893,1736112643754,-552.16,0.00020892,3]
[347796895,1736112643764,-500.0,0.00020892,3]
[347796897,1736112643773,-363.13982377,0.00020892,3]
[347797508,1736112720233,160.912262,0.00013973,2]
[347797523,1736113534202,-1298.31823445,0.00018156,2]
[347797524,1736113552085,-535.22164801,0.00018156,2]
[347797525,1736113579246,161.185679,0.00013973,2]
[347797526,1736113591083,-190.62286087,0.00017974,2]
[347797527,1736113628107,-496.37439409,0.00017794,2]
[347797528,1736113645087,-587.7,0.00017794,2]
[347797529,1736113646145,-128.93751742,0.00017794,2]
[347797530,1736113646168,-68.46044952,0.00017974,2]
[347797531,1736113646191,-813.30280495,0.000189,2]
[347797532,1736113646212,-155.55659496,0.000189,2]
[347797533,1736113646234,-5619.5817512,0.00018927,2]
[347797534,1736113646257,-300.0,0.00018999,2]
[347797535,1736113646278,-12963.57180174,0.00019,2]
[347797536,1736113646300,-274.3649262,0.00019141,2]
[347797537,1736113646320,-500.0,0.00019178,2]
[347797538,1736113646342,-500.0,0.00019178,2]
[347797539,1736113646364,-500.0,0.00019178,2]
[347797540,1736113646385,-500.0,0.00019178,2]
[347797541,1736113646407,-500.0,0.00019178,2]
[347797542,1736113646428,-500.0,0.00019178,2]
[347797543,1736113646448,-644.48380355,0.00019178,2]
[347797544,1736113646469,-500.0,0.00019178,2]
[347797545,1736113646489,-500.0,0.00019178,2]
[347797546,1736113646510,-500.0,0.00019178,2]
[347797547,1736113646532,-500.0,0.00019178,2]
[347797548,1736113646553,-500.0,0.00019178,2]
[347797549,1736113646574,-500.0,0.00019178,2]
[347797550,1736113646594,-500.0,0.00019178,2]
[347797551,1736113646615,-500.0,0.00019178,2]
[347797552,1736113646636,-500.0,0.00019178,2]
[347797553,1736113646657,-500.0,0.00019178,2]
[347797554,1736113646678,-500.0,0.00019178,2]
[347797555,1736113646700,-500.0,0.00019178,2]
[347797556,1736113646721,-500.0,0.00019178,2]
[347797557,1736113646744,-500.0,0.00019178,2]
[347797558,1736113646766,-500.0,0.00019178,2]
[347797559,1736113646788,-500.0,0.00019178,2]
[347797560,1736113646808,-500.0,0.00019178,2]
[347797561,1736113646834,-500.0,0.00019178,2]
[347797562,1736113646855,-500.0,0.00019178,2]
[347797563,1736113646876,-381.12333016,0.00019178,2]
[347797564,1736113646897,-501.23049456,0.00019178,2]
[347797565,1736113646918,-500.0,0.00019178,2]
[347797566,1736113646940,-500.0,0.00019178,2]
[347797567,1736113646960,-500.0,0.00019178,2]
[347797568,1736113646981,-500.0,0.00019178,2]
[347797569,1736113647002,-500.0,0.00019178,2]
[347797570,1736113647022,-200.0,0.00019178,2]
[347797571,1736113647042,-500.0,0.00019178,2]
[347797572,1736113647063,-500.0,0.00019178,2]
[347797573,1736113647083,-160.836094,0.00019178,2]
[347797574,1736113647104,-306.4557036,0.00019596,2]
[347797575,1736113647125,-935.1467297,0.00019811,2]
[347797576,1736113647147,-173.81914424,0.0001985,2]
[347797577,1736113647170,-435.489,0.0001995,2]
[347797578,1736113647194,-384.45287141,0.0002011,2]
[347797579,1736113757119,-300.0,0.00019177,2]
[347797580,1736113757139,-500.0,0.00019178,2]
[347797581,1736113757159,-537.1010704,0.00019178,2]
[347797582,1736113757181,-500.0,0.00019178,2]
[347797583,1736113757201,-500.0,0.00019178,2]
[347797584,1736113757221,-500.0,0.00019178,2]
[347797585,1736113757240,-500.0,0.00019178,2]
[347797586,1736113757263,-603.89053517,0.00019178,2]
[347797587,1736113757285,-500.0,0.00019178,2]
[347797588,1736113757305,-500.0,0.00019178,2]
[347797589,1736113757326,-500.1828881,0.00019178,2]
[347797590,1736113757456,-500.0,0.00019178,2]
[347797591,1736113757478,-500.0,0.00019178,2]
[347797592,1736113757499,-500.0,0.00019178,2]
[347797593,1736113757520,-500.0,0.00019178,2]
[347797594,1736113757540,-500.0,0.00019178,2]
[347797595,1736113757562,-500.0,0.00019178,2]
[347797596,1736113757582,-500.0,0.00019178,2]
[347797597,1736113757602,-500.0,0.00019178,2]
[347797598,1736113757622,-500.0,0.00019178,2]
[347797599,1736113757644,-500.0,0.00019178,2]
[347797600,1736113757665,-500.94075034,0.00019178,2]
[347797601,1736113757684,-500.75654411,0.00019178,2]
[347797602,1736113757705,-500.0,0.00019178,2]
[347797603,1736113757725,-415.14938101,0.00019178,2]
[347797604,1736113768179,-148.77364251,0.00019178,2]
[347797605,1736113768209,-500.0,0.00019178,2]
[347797606,1736113768236,-500.0,0.00019178,2]
[347797607,1736113768259,-500.0,0.00019178,2]
[347797608,1736113768281,-500.0,0.00019178,2]
[347797609,1736113768303,-500.0,0.00019178,2]
[347797610,1736113768326,-500.0,0.00019178,2]
[347797611,1736113768348,-500.0,0.00019178,2]
[347797612,1736113768369,-500.0,0.00019178,2]
[347797613,1736113768392,-500.0,0.00019178,2]
[347797614,1736113768413,-500.0,0.00019178,2]
[347797615,1736113768435,-500.0,0.00019178,2]
[347797616,1736113768458,-500.0,0.00019178,2]
[347797617,1736113768480,-500.0,0.00019178,2]
[347797618,1736113768502,-500.0,0.00019178,2]
[347797619,1736113768524,-500.0,0.00019178,2]
[347797620,1736113768546,-500.0,0.00019178,2]
[347797621,1736113768567,-500.0,0.00019178,2]
[347797622,1736113768589,-500.0,0.00019178,2]
[347797623,1736113768610,-500.0,0.00019178,2]
[347797624,1736113768631,-500.0,0.00019178,2]
[347797625,1736113768652,-500.0,0.00019178,2]
[347797626,1736113768673,-500.0,0.00019178,2]
[347797627,1736113768695,-500.0,0.00019452,3]
[347797628,1736113768716,-500.0,0.00019726,3]
[347797629,1736113768737,-500.0,0.0002,3]
[347797630,1736113768759,-321.00711019,0.0002011,2]
[347797631,1736113768782,-157.0,0.0002011,2]
[347797632,1736113768803,-181.48,0.00020273,3]
[347797633,1736113768825,-173.81914418,0.00020284,2]
[347797634,1736113768847,-500.0,0.00020298,3]
[347797635,1736113768871,-500.0,0.00020298,3]
[347797636,1736113768894,-500.0,0.00020298,3]
[347797637,1736113768917,-500.0,0.00020299,3]
[347797638,1736113768939,-500.0,0.00020299,3]
[347797639,1736113768961,-500.0,0.00020299,3]
[347797640,1736113768983,-500.0,0.00020299,3]
[347797641,1736113769005,-500.0,0.00020299,3]
[347797642,1736113769027,-500.0,0.00020299,3]
[347797643,1736113769051,-1383.64,0.00020299,3]
[347797644,1736113769073,-500.0,0.00020299,3]
[347797645,1736113769096,-758.27,0.00020299,3]
[347797646,1736113769118,-500.0,0.00020299,3]
[347797647,1736113769140,-500.0,0.00020299,3]
[347797648,1736113769163,-500.0,0.00020299,3]
[347797649,1736113769189,-500.0,0.00020299,3]
[347797650,1736113769212,-500.0,0.00020299,3]
[347797651,1736113769377,-500.0,0.00020299,3]
[347797652,1736113769399,-500.0,0.00020299,3]
[347797653,1736113769422,-500.0,0.00020299,3]
[347797654,1736113769443,-500.0,0.00020299,3]
[347797655,1736113769466,-500.0,0.00020299,3]
[347797656,1736113769488,-527.85,0.00020299,3]
[347797657,1736113769509,-500.0,0.00020299,3]
[347797658,1736113769532,-500.0,0.00020299,3]
[347797659,1736113769554,-500.0,0.00020299,3]
[347797660,1736113769577,-500.0,0.00020299,3]
[347797661,1736113769598,-500.0,0.00020299,3]
[347797662,1736113769619,-246.90461551,0.00020299,3]
[347797663,1736113769642,-500.0,0.00020299,3]
[347797664,1736113769666,-1375.77,0.000203,3]
[347797665,1736113769687,-153.693575,0.000205,2]
[347797666,1736113769707,-214.5892987,0.000205,2]
[347797667,1736113769728,-153.4793018,0.000205,2]
[347797668,1736113769750,-214.2921279,0.000205,2]
[347797669,1736113769772,-153.693575,0.00020521,2]
[347797670,1736113769796,-214.5892987,0.00020521,2]
[347797671,1736113769818,-153.693575,0.00020521,2]
[347797672,1736113769839,-214.5892987,0.00020521,2]
[347797673,1736113769863,-153.693575,0.00020521,2]
[347797674,1736113769885,-214.5892987,0.00020521,2]
[347797675,1736113769905,-120.00924974,0.00020521,2]
[347797676,1736113773100,-500.0,0.00019178,2]
[347797677,1736113773121,-442.4464,0.00019178,2]
[347797684,1736113828962,191.32611718,0.000189,2]
[347797705,1736113831739,-350.87575279,0.000189,2]
[347797707,1736113831749,-268.0,0.00019177,2]
[347797709,1736113831758,-57.5536,0.00019178,2]
[347797711,1736113831768,-500.0,0.00019178,2]
[347797713,1736113831777,-231.67979924,0.00019178,2]
[347797715,1736113831786,-500.0,0.00019178,2]
[347797717,1736113831796,-506.81917,0.00019178,2]
[347797719,1736113831805,-500.0,0.00019178,2]
[347797721,1736113831815,-500.0,0.00019178,2]
[347797723,1736113831824,-500.0,0.00019178,2]
[347797725,1736113831837,-500.0,0.00019178,2]
[347797727,1736113831846,-500.0,0.00019178,2]
[347797729,1736113831856,-500.0,0.00019178,2]
[347797731,1736113831866,-500.0,0.00019178,2]
[347797733,1736113831875,-500.0,0.00019178,2]
[347797735,1736113831884,-500.0,0.00019178,2]
[347797737,1736113831893,-500.0,0.00019452,3]
[347797739,1736113831903,-719.78271708,0.000199,2]
[347797744,1736113831937,-91.043,0.000199,2]
[347798286,1736113837589,-500.0,0.00019178,2]
[347798288,1736113837598,-500.0,0.00019178,2]
[347798289,1736113837608,-500.0,0.00019178,2]
[347798291,1736113837617,-500.0,0.00019178,2]
[347798294,1736113837627,-3614.88849576,0.000199,2]
[347798295,1736113837637,-4425.71421264,0.00020003,2]
[347798297,1736113837647,-4425.71421264,0.00020107,2]
[347798299,1736113837656,-4425.71421264,0.0002021,2]
[347798301,1736113837665,-500.0,0.00020298,3]
[347798304,1736113837675,-449.36,0.00020298,3]
[347798305,1736113837684,-500.0,0.00020298,3]
[347798307,1736113837693,-500.0,0.00020298,3]
[347798309,1736113837702,-1325.99,0.00020298,3]
[347798311,1736113837712,-726.67,0.00020298,3]
[347798313,1736113837721,-500.0,0.00020299,3]
[347798315,1736113837730,-500.0,0.00020299,3]
[347798317,1736113837739,-500.0,0.00020299,3]
[347798318,1736113837749,-500.0,0.00020299,3]
[347798319,1736113837758,-500.0,0.00020299,3]
[347798321,1736113837768,-500.0,0.00020299,3]
[347798323,1736113837777,-500.0,0.00020299,3]
[347798325,1736113837788,-651.65,0.00020299,3]
[347798327,1736113837797,-500.0,0.00020299,3]
[347798329,1736113837806,-500.0,0.00020299,3]
[347798331,1736113837815,-500.0,0.00020299,3]
[347798333,1736113837825,-500.0,0.00020299,3]
[347798335,1736113837838,-4425.71421264,0.00020314,2]
[347798337,1736113837849,-4425.71421264,0.00020417,2]
[347798339,1736113837858,-365.78995224,0.0002048,2]
[347798341,1736113837868,-94.58004896,0.00020521,2]
[347798343,1736113837879,-153.693575,0.00020521,2]
[347798345,1736113837888,-214.5892987,0.00020521,2]
[347798347,1736113837897,-153.693575,0.00020521,2]
[347798349,1736113837907,-153.693575,0.00020521,2]
[347798351,1736113837917,-214.5892987,0.00020521,2]
[347798353,1736113837929,-2996.70679169,0.00020521,2]
[347798355,1736113837941,-1429.00742095,0.00020521,2]
[347798357,1736113837951,-446.21,0.00020572,3]
[347798359,1736113837960,-151.54978634,0.00020572,3]
[347798548,1736113839824,-302.57643833,0.00019801,2]
[347798550,1736113839838,-348.45021366,0.00020572,3]
[347798552,1736113839847,-500.0,0.00020572,3]
[347798554,1736113839856,-500.0,0.00020572,3]
[347798556,1736113839865,-14.68994406,0.00020572,3]
[347798760,1736113842832,-500.0,0.00019178,2]
[347798762,1736113842842,-500.0,0.00020299,3]
[347798764,1736113842851,-1311.30005594,0.00020572,3]
[347798766,1736113842860,-726.67,0.00020572,3]
[347798768,1736113842870,-500.0,0.00020573,3]
[347798770,1736113842879,-500.0,0.00020573,3]
[347798772,1736113842889,-500.0,0.00020573,3]
[347798774,1736113842898,-254.95023369,0.00020573,3]
[347798776,1736113842910,-261.44976631,0.00020573,3]
[347798778,1736113842920,-340.18658615,0.00020573,3]
[347798784,1736113842973,-21.18031787,0.00020573,3]
[347798787,1736113842985,-138.63309598,0.00020573,3]
[347798789,1736113842994,-595.19,0.00020573,3]
[347798790,1736113843004,-70.99951537,0.00020573,3]
[347798793,1736113843016,-429.00048463,0.00020573,3]
[347798795,1736113843024,-500.0,0.00020573,3]
[347798797,1736113843034,-500.0,0.00020573,3]
[347798799,1736113843043,-500.0,0.00020573,3]
[347798801,1736113843052,-500.0,0.00020573,3]
[347798803,1736113843061,-170.47130855,0.00020573,3]
[347798969,1736113845645,-500.0,0.00019178,2]
[347798971,1736113845655,-329.52869145,0.00020573,3]
[347798973,1736113845665,-206.01819605,0.00020573,3]
[347798976,1736113845676,-293.98180395,0.00020573,3]
[347798978,1736113845686,-500.0,0.00020573,3]
[347798980,1736113845696,-500.0,0.00020573,3]
[347798982,1736113845705,-289.97131606,0.00020573,3]
[347798984,1736113845714,-227.17104749,0.00020579,2]
[347798986,1736113845723,-500.0,0.00020579,2]
[347798988,1736113845732,-300.14790039,0.00020579,2]
[347798989,1736113845742,-500.0,0.00020579,2]
[347798991,1736113845751,-500.0,0.00020579,2]
[347798993,1736113845760,-646.66961315,0.00020579,2]
[347798995,1736113845770,-500.0,0.0002058,3]
[347798997,1736113845779,-503.5248217,0.0002058,3]
[347799000,1736113845789,-500.73454713,0.0002058,3]
[347799002,1736113845798,-500.0,0.0002058,3]
[347799003,1736113845807,-501.09012112,0.0002058,3]
[347799006,1736113845817,-500.0,0.0002058,3]
[347799007,1736113845827,-500.97807327,0.0002058,3]
[347799009,1736113845840,-154.51380334,0.0002058,3]
[347799011,1736113845850,-500.0,0.0002058,3]
[347799014,1736113845859,-500.0,0.0002058,3]
[347799016,1736113845868,-500.86988622,0.0002058,3]
[347799018,1736113845879,-500.0,0.0002058,3]
[347799019,1736113845888,-500.0,0.0002058,3]
[347799021,1736113845897,-500.0,0.0002058,3]
[347799023,1736113845909,-500.0,0.0002058,3]
[347799025,1736113845919,-500.0,0.0002058,3]
[347799027,1736113845929,-500.0,0.0002058,3]
[347799029,1736113845938,-500.0,0.0002058,3]
[347799031,1736113845948,-336.0,0.0002058,3]
[347799033,1736113845957,-500.0,0.0002058,3]
[347799036,1736113845967,-343.19389308,0.0002058,3]
[347799037,1736113845976,-500.0,0.0002058,3]
[347799039,1736113845986,-500.0,0.0002058,3]
[347799041,1736113845996,-500.0,0.0002058,3]
[347799044,1736113846006,-500.0,0.0002058,3]
[347799045,1736113846017,-500.0,0.0002058,3]
[347799047,1736113846027,-500.0,0.0002058,3]
[347799049,1736113846036,-500.0,0.0002058,3]
[347799051,1736113846046,-500.0,0.0002058,3]
[347799053,1736113846056,-500.0,0.0002058,3]
[347799055,1736113846066,-500.0,0.0002058,3]
[347799058,1736113846075,-500.0,0.0002058,3]
[347799059,1736113846084,-500.0,0.0002058,3]
[347799061,1736113846094,-500.0,0.0002058,3]
[347799064,1736113846103,-500.0,0.0002058,3]
[347799065,1736113846112,-500.0,0.0002058,3]
[347799066,1736113846122,-500.0,0.0002058,3]
[347799067,1736113846131,-500.0,0.0002058,3]
[347799068,1736113846142,-500.0,0.0002058,3]
[347799069,1736113846151,-500.0,0.0002058,3]
[347799071,1736113846160,-500.0,0.0002058,3]
[347799073,1736113846169,-500.0,0.0002058,3]
[347799075,1736113846179,-500.0,0.0002058,3]
[347799077,1736113846188,-500.0,0.0002058,3]
[347799079,1736113846198,-500.0,0.0002058,3]
[347799081,1736113846207,-500.0,0.0002058,3]
[347799083,1736113846215,-500.0,0.0002058,3]
[347799085,1736113846224,-500.0,0.0002058,3]
[347799087,1736113846233,-500.0,0.0002058,3]
[347799089,1736113846242,-500.0,0.0002058,3]
[347799091,1736113846252,-500.0,0.0002058,3]
[347799093,1736113846261,-500.0,0.0002058,3]
[347799095,1736113846271,-500.0,0.0002058,3]
[347799097,1736113846280,-500.0,0.0002058,3]
[347799099,1736113846289,-500.0,0.0002058,3]
[347799101,1736113846299,-500.0,0.0002058,3]
[347799103,1736113846309,-500.0,0.0002058,3]
[347799105,1736113846318,-500.0,0.0002058,3]
[347799106,1736113846327,-500.0,0.0002058,3]
[347799108,1736113846336,-500.0,0.0002058,3]
[347799111,1736113846345,-500.0,0.0002058,3]
[347799112,1736113846354,-500.0,0.0002058,3]
[347799115,1736113846364,-500.0,0.0002058,3]
[347799117,1736113846373,-500.0,0.0002058,3]
[347799119,1736113846383,-500.0,0.0002058,3]
[347799121,1736113846393,-501.41053754,0.0002058,3]
[347799123,1736113846402,-500.0,0.0002058,3]
[347799125,1736113846411,-502.12579725,0.0002058,3]
[347799127,1736113846420,-500.0,0.0002058,3]
[347799129,1736113846429,-500.0,0.0002058,3]
[347799131,1736113846439,-500.0,0.0002058,3]
[347799133,1736113846448,-500.0,0.0002058,3]
[347799135,1736113846457,-500.0,0.0002058,3]